bitfinex-derivatives/quotes_ETHF0:USTF0_20250104
["timestamp","ask_amount","ask_price","bid_price","bid_amount"]
[1735962636061,3.94042,3596.8,3596.6,0.72043]
[1735962636361,0.27812,3596.7,3596.6,0.4423]
[1735962644264,3.55474004,3596.7,3596.6,0.4423]
[1735962646760,3.97198936,3596.7,3596.6,0.4423]
[1735962648460,3.69386936,3596.7,3596.4,1.071]
[1735962648661,3.69386936,3596.7,3596.3,4.78865709]
[1735962648662,3.2078,3596.6,3596.3,4.78865709]
[1735962648967,0.27815,3596.4,3596.3,4.78865709]
[1735962649170,0.27815,3596.4,3596.3,5.86265709]
[1735962649562,0.27815,3596.4,3596.3,6.14081709]
[1735962649763,3.55477004,3596.4,3596.3,1.77466]
[1735962650566,3.27662004,3596.4,3596.3,1.77466]
[1735962650767,3.55477004,3596.4,3596.3,1.77466]
[1735962650957,3.97205305,3596.4,3596.3,6.14081709]
[1735962652363,3.69390305,3596.4,3596.3,7.14637005]
[1735962652565,0.69543301,3596.4,3596.3,7.14637005]
[1735962652763,0.41728301,3596.4,3596.3,7.14637005]
[1735962654373,0.41728301,3596.4,3596.3,13.5488063]
[1735962656476,0.41728301,3596.4,3596.3,7.01278194]
[1735962658374,0.41728301,3596.4,3596.3,13.5488063]
[1735962663781,4.37094622,3596.5,3596.4,0.27815]
[1735962665383,0.41728301,3596.5,3596.4,4.51071898]
[1735962667276,4.78822923,3596.5,3596.4,4.51071898]
[1735962668380,4.78822923,3596.5,3596.4,4.78884776]
[1735962668581,3.68864622,3596.5,3596.4,4.78884776]
[1735962668878,2.32534622,3596.5,3596.4,9.78884776]
[1735962670087,2.18789749,3596.9,3596.8,0.27812]
[1735962670282,2.18789749,3596.9,3596.8,4.49147296]
[1735962671583,2.18789749,3597.0,3596.8,8.44592194]
[1735962671783,2.18789749,3597.0,3596.9,0.27811]
[1735962673089,2.18789749,3597.0,3596.9,4.51067898]
[1735962674489,2.18789749,3597.1,3597.0,0.2781]
[1735962674695,2.18789749,3597.1,3597.0,2.35365296]
[1735962675490,3.28184624,3597.2,3597.0,2.07555296]
[1735962675684,3.28184624,3597.2,3597.1,0.27809]
[1735962676693,3.69903435,3597.2,3597.1,0.27809]
[1735962679101,3.28184624,3597.2,3597.1,0.27809]
[1735962682911,2.62479815,3597.3,3597.2,0.27809]
[1735962683110,2.62479815,3597.3,3597.2,1.28364296]
[1735962685813,0.4406,3597.3,3597.2,1.28364296]
[1735962694315,0.4406,3597.3,3596.9,4.37214129]
[1735962694518,0.2781,3597.0,3596.9,3.68994129]
[1735962694709,0.2781,3597.0,3596.9,4.69549425]
[1735962695315,3.4859,3597.1,3596.9,4.69549425]
[1735962696221,2.18419815,3597.0,3596.9,1.00555296]
[1735962696914,2.18419815,3597.0,3596.9,1.28366296]
[1735962697121,2.18419815,3597.0,3596.9,1.00555296]
[1735962697614,2.46229815,3597.1,3596.9,1.00555296]
[1735962698614,2.18419815,3597.0,3596.9,1.00555296]
[1735962700223,2.18419815,3597.0,3596.9,1.28366296]
[1735962700814,2.18419815,3597.0,3596.9,0.27811]
[1735962701015,2.18419815,3597.2,3597.1,0.27809]
[1735962701317,2.18419815,3597.2,3597.1,1.28364296]
[1735962702419,4.00052624,3597.3,3597.1,1.28364296]
[1735962703920,0.27813,3596.7,3596.6,1.00555296]
[1735962704127,0.27812,3596.7,3596.6,1.00555296]
[1735962704618,6.48964624,3597.2,3596.6,1.00555296]
[1735962704814,0.27812,3596.8,3596.5,6.5595277]
[1735962705014,0.8749,3596.7,3596.5,6.8376677]
[1735962705214,0.8749,3596.7,3596.5,0.27814]
[1735962705413,0.8749,3596.7,3596.6,0.27813]
[1735962705614,0.4474,3596.7,3596.6,0.27813]
[1735962706118,0.4474,3596.7,3596.6,1.28368296]
[1735962708328,0.4474,3596.7,3596.6,1.00555296]
[1735962708627,0.72552,3596.7,3596.6,1.00555296]
[1735962709331,0.4474,3596.7,3596.6,1.00555296]
[1735962710325,2.62858381,3596.7,3596.6,1.00555296]
[1735962711825,2.90670381,3596.7,3596.6,1.00555296]
[1735962713724,4.00736624,3596.7,3596.6,1.00555296]
[1735962717028,0.72552,3596.7,3596.6,1.00555296]
[1735962724634,0.72552,3596.7,3596.6,1.44205296]
[1735962724845,2.90644522,3596.7,3596.6,1.44205296]
[1735962725834,2.62832522,3596.7,3596.4,2.07555296]
[1735962726043,0.27814,3596.5,3596.4,1.00555296]
[1735962726637,0.27816,3596.2,3596.1,6.5595277]
[1735962727440,0.71886,3596.2,3596.1,6.5595277]
[1735962727846,0.27818,3596.1,3595.8,1.72024296]
[1735962728344,0.4193,3596.0,3595.8,1.72024296]
[1735962728942,2.87840522,3596.0,3595.8,1.72024296]
[1735962730444,0.69748,3596.0,3595.8,1.72024296]
[1735962731142,0.4193,3596.0,3595.9,0.27819]
[1735962735535,0.4193,3596.0,3595.8,1.44205296]
[1735962735536,0.4407,3596.2,3595.8,1.44205296]
[1735962735746,0.71887,3596.2,3596.1,1.00555296]
[1735962735948,2.89979522,3596.2,3596.1,1.00555296]
[1735962738545,2.62162522,3596.2,3595.9,1.00555296]
[1735962739049,0.27817,3596.1,3595.9,1.00555296]
[1735962739250,0.27817,3596.1,3595.9,1.28374296]
[1735962739848,0.27817,3596.1,3595.9,1.00555296]
[1735962740039,0.27817,3596.1,3595.9,1.28374296]
[1735962741149,2.89979522,3596.2,3595.9,1.28374296]
[1735962741349,0.27817,3596.1,3595.9,1.28374296]
[1735962741745,2.45909522,3596.1,3595.9,1.28374296]
[1735962741945,2.45909522,3596.1,3595.9,1.00555296]
[1735962744246,2.18092522,3596.1,3595.9,1.00555296]
[1735962744451,0.27819,3595.9,3595.8,0.4365]
[1735962745246,3.48599,3595.9,3595.8,0.4365]
[1735962746051,0.27819,3595.8,3595.7,1.00555296]
[1735962746246,0.2782,3595.7,3595.6,1.07]
[1735962746449,0.6949,3595.7,3595.6,1.00555296]
[1735962752659,0.27822,3595.5,3595.4,1.42345296]
[1735962752847,3.48602,3595.5,3595.4,1.42345296]
[1735962753052,0.27822,3595.5,3595.4,1.42345296]
[1735962753861,3.48602,3595.5,3595.4,1.42345296]
[1735962755459,5.6642581,3595.5,3595.4,1.42345296]
[1735962758461,3.48602,3595.5,3595.4,1.42345296]
[1735962759266,3.48602,3595.5,3595.4,1.00555296]
[1735962764764,5.6642581,3595.5,3595.4,1.00555296]
[1735962768963,3.48602,3595.5,3595.4,1.00555296]
[1735962769170,0.27822,3595.5,3595.4,1.00555296]
[1735962769366,2.1782381,3595.6,3595.4,1.00555296]
[1735962769576,2.1782381,3595.6,3595.5,1.75262]
[1735962770077,2.1782381,3595.6,3595.5,2.75817296]
[1735962770266,5.6642281,3595.9,3595.5,2.75817296]
[1735962770467,5.6642281,3595.9,3595.8,1.00555296]
[1735962771467,6.1037281,3595.9,3595.8,1.00555296]
[1735962771971,5.6642281,3595.9,3595.8,1.00555296]
[1735962772377,0.2782,3595.7,3595.6,1.89155296]
[1735962772572,0.2782,3595.7,3595.6,1.5187]
[1735962773474,0.2782,3595.7,3595.6,2.52425296]
[1735962774279,3.97742936,3595.7,3595.6,2.52425296]
[1735962775568,3.56004624,3595.7,3595.6,2.52425296]
[1735962778184,3.97742888,3595.7,3595.6,2.52425296]
[1735962779585,3.97742888,3595.7,3595.6,1.07]
[1735962780794,1.4229356,3595.7,3595.3,0.4229]
[1735962780986,0.27823,3595.4,3595.3,0.4229]
[1735962781788,3.55014366,3595.4,3595.3,0.4229]
[1735962782292,6.75794366,3595.4,3595.3,0.4229]
[1735962783398,7.17536093,3595.4,3595.3,0.4229]
[1735962784996,3.90344727,3595.4,3595.3,0.4229]
[1735962786799,0.69564727,3595.4,3595.3,0.4229]
[1735962788300,3.96865886,3595.4,3595.3,0.4229]
[1735962788501,3.69042886,3595.4,3595.3,0.70113]
[1735962788795,3.69042886,3595.4,3595.3,1.11923]
[1735962788994,3.69042886,3595.4,3595.3,0.841]
[1735962789400,3.96864886,3595.5,3595.3,0.841]
[1735962789596,3.69042886,3595.5,3595.4,1.00555296]
[1735962789799,0.27823,3595.4,3595.3,0.4229]
[1735962790994,5.05745815,3595.4,3595.3,0.4229]
[1735962793894,0.69564727,3595.4,3595.3,0.4229]
[1735962794302,0.41741727,3595.4,3595.3,0.4229]
[1735962794698,0.69564727,3595.4,3595.3,0.4229]
[1735962795804,0.41741727,3595.4,3595.3,0.4229]
[1735962796406,4.77922815,3595.4,3595.3,0.4229]
[1735962796909,5.05745815,3595.4,3595.3,0.4229]
[1735962800210,4.77922815,3595.4,3595.3,0.4229]
[1735962802103,0.41741727,3595.4,3595.3,0.4229]
[1735962802308,0.41741727,3595.4,3595.3,0.70113]
[1735962803707,3.27768939,3595.4,3595.3,4.89686148]
[1735962805414,3.27768939,3595.4,3595.3,4.61863148]
[1735962806117,3.27768939,3595.4,3595.3,0.4229]
[1735962806411,3.55591939,3595.4,3595.3,1.4929]
[1735962806613,3.99421939,3595.4,3595.3,2.49845296]
[1735962807504,1.13394727,3595.4,3595.3,2.49845296]
[1735962807710,0.85571727,3595.4,3595.3,2.49845296]
[1735962808912,0.4383,3595.4,3595.3,2.49845296]
[1735962809311,0.71653,3595.4,3595.3,1.07]
[1735962809520,0.71653,3595.4,3595.3,2.07555296]
[1735962810413,1.13394727,3595.4,3595.3,2.07555296]
[1735962810617,5.49575815,3595.4,3595.3,2.07555296]
[1735962811818,5.49575815,3595.4,3595.3,1.00555296]
[1735962815413,5.21752815,3595.4,3595.3,1.00555296]
[1735962817007,5.49575815,3595.4,3595.3,1.00555296]
[1735962817320,1.13394727,3595.4,3595.3,5.38307954]
[1735962821421,0.41741727,3595.4,3595.3,5.38307954]
[1735962821721,0.41741727,3595.4,3595.3,5.66130954]
[1735962822312,0.41741727,3595.4,3595.3,5.48145319]
[1735962825115,4.36181088,3595.5,3595.4,0.27823]
[1735962825116,4.77922815,3595.5,3595.4,0.27823]
[1735962825622,4.77922815,3595.5,3595.4,0.71413]
[1735962826520,4.36181088,3595.5,3595.4,5.09385411]
[1735962826816,4.36181088,3595.5,3595.4,5.53605411]
[1735962828526,4.77922815,3595.5,3595.4,5.53605411]
[1735962829618,4.36181088,3595.5,3595.4,5.53605411]
[1735962831129,0.41741727,3595.5,3595.4,5.34158311]
[1735962832324,0.41741727,3595.5,3595.4,8.54938311]
[1735962832530,4.77918054,3595.6,3595.5,1.28377296]
[1735962832734,4.77918054,3595.6,3595.5,1.56190174]
[1735962833327,4.77918054,3595.6,3595.5,1.28377296]
[1735962833920,5.4685619,3595.8,3595.5,13.56131229]
[1735962834125,2.18592119,3595.9,3595.8,0.27819]
[1735962834327,2.18592119,3595.9,3595.8,1.34819]
[1735962834527,2.18592119,3595.9,3595.8,1.78319]
[1735962835632,2.18592119,3596.0,3595.8,12.25149984]
[1735962835834,2.18592119,3596.0,3595.9,1.00555296]
[1735962836430,2.18592119,3596.0,3595.9,1.28374296]
[1735962836630,2.18592119,3596.0,3595.9,1.44485296]
[1735962837031,0.27817,3596.1,3595.9,5.81806378]
[1735962837032,2.46409119,3596.1,3595.9,5.81806378]
[1735962837833,2.18592119,3596.1,3595.9,5.81806378]
[1735962838030,2.46409119,3596.1,3595.9,5.81806378]
[1735962838533,2.18592119,3596.1,3595.9,1.72303296]
[1735962839329,2.46409119,3596.1,3595.9,1.72303296]
[1735962840238,2.18592119,3596.1,3596.0,0.27818]
[1735962841142,3.05402119,3596.3,3596.1,0.27817]
[1735962841339,3.05402119,3596.3,3596.2,1.00555296]
[1735962841635,3.05402119,3596.3,3596.2,1.70151296]
[1735962841831,3.05402119,3596.3,3596.2,1.42335296]
[1735962842335,3.33218119,3596.3,3596.2,1.42335296]
[1735962843040,3.33218119,3596.3,3596.2,1.00555296]
[1735962843339,0.27817,3596.2,3596.0,1.00555296]
[1735962843542,0.4345,3596.1,3596.0,1.00555296]
[1735962844538,0.4345,3596.1,3596.0,2.07555296]
[1735962845040,2.62042119,3596.1,3596.0,2.07555296]
[1735962845538,2.62042119,3596.1,3596.0,2.35373296]
[1735962846133,2.62042119,3596.1,3596.0,2.07555296]
[1735962847135,2.62042119,3596.1,3596.0,1.07]
[1735962847341,2.89859119,3596.1,3596.0,2.07555296]
[1735962847937,0.71267,3596.1,3596.0,2.07555296]
[1735962854347,0.4345,3596.1,3596.0,2.07555296]
[1735962854552,0.4345,3596.1,3596.0,2.35373296]
[1735962854843,2.18020827,3596.2,3596.0,10.28335296]
[1735962855047,6.5265401,3597.1,3596.1,0.4126]
[1735962855350,3.69384036,3596.7,3596.6,4.49148296]
[1735962856051,0.4514,3596.9,3596.7,0.27812]
[1735962856253,0.9053,3596.9,3596.8,1.07]
[1735962856749,0.9053,3596.9,3596.8,1.34812]
[1735962857148,0.9053,3596.9,3596.8,1.07]
[1735962857545,1.18341,3596.9,3596.8,2.07555296]
[1735962857850,1.18341,3596.9,3596.7,1.07]
[1735962859356,0.9053,3596.9,3596.7,1.07]
[1735962859541,0.9053,3596.9,3596.8,1.00555296]
[1735962860240,0.9053,3596.9,3596.8,1.28367296]
[1735962860442,0.9053,3596.9,3596.8,1.70977296]
[1735962861540,0.9053,3596.9,3596.8,0.4261]
[1735962861747,1.18341,3596.9,3596.7,1.07]
[1735962861947,1.18341,3596.9,3596.7,2.07555296]
[1735962862148,0.9053,3596.9,3596.7,2.07555296]
[1735962862349,0.9053,3596.9,3596.8,0.27812]
[1735962862550,0.9053,3596.9,3596.8,0.69842]
[1735962863462,0.4514,3596.9,3596.8,0.69842]
[1735962864152,3.48588,3597.3,3596.8,0.4203]
[1735962864352,2.947,3598.2,3597.3,0.27807]
[1735962864353,3.48585,3597.7,3597.3,0.27807]
[1735962864561,4.34725,3597.7,3597.6,1.00555296]
[1735962864759,1.13945,3597.7,3597.6,1.00555296]
[1735962865060,0.8614,3597.7,3597.6,1.00555296]
[1735962865454,1.13945,3597.7,3597.6,1.00555296]
[1735962865847,0.8614,3597.7,3597.6,1.00555296]
[1735962866165,1.13945,3597.7,3597.6,1.00555296]
[1735962869660,0.27806,3597.5,3597.4,1.00555296]
[1735962870063,0.8614,3597.7,3597.3,1.4878]
[1735962870370,0.69217,3597.4,3597.3,1.07]
[1735962871370,0.69217,3597.4,3597.2,1.00555296]
[1735962871676,0.4141,3597.4,3597.2,1.00555296]
[1735962871969,0.69217,3597.4,3597.2,1.00555296]
[1735962872168,0.27808,3597.3,3597.2,1.00555296]
[1735962873270,0.4141,3597.4,3596.9,3.2078]
[1735962873471,0.4141,3597.4,3596.8,2.07555296]
[1735962873472,0.27811,3597.0,3596.8,2.07555296]
[1735962873660,0.8849,3596.9,3596.8,1.00555296]
[1735962873866,1.60301,3596.9,3596.8,1.00555296]
[1735962875173,1.3249,3596.9,3596.8,1.00555296]
[1735962875575,1.60301,3596.9,3596.8,1.00555296]
[1735962894195,0.4504,3596.9,3596.8,1.00555296]
[1735962894693,0.72851,3596.9,3596.8,1.00555296]
[1735962897086,1.14575381,3596.9,3596.8,1.00555296]
[1735962907499,1.56475381,3596.9,3596.8,1.00555296]
[1735962907903,5.92995298,3596.9,3596.8,1.00555296]
[1735962910896,0.27814,3596.5,3596.4,5.37030206]
[1735962911603,1.14528381,3596.5,3596.4,1.00555296]
[1735962914912,5.51048298,3596.5,3596.4,1.00555296]
[1735962920404,1.14528381,3596.5,3596.4,1.00555296]
[1735962921505,0.27816,3596.3,3596.2,1.00555296]
[1735962922710,0.69540381,3596.3,3596.2,1.00555296]
[1735962926111,3.97593222,3596.3,3596.2,1.00555296]
[1735962929413,0.69540381,3596.3,3596.2,1.00555296]
[1735962930515,0.27816,3596.3,3596.2,1.00555296]
[1735962931814,3.97531988,3596.3,3596.2,1.00555296]
[1735962935510,3.97531988,3596.3,3596.2,1.42345296]
[1735962940511,3.69715988,3596.3,3596.2,1.42345296]
[1735962940715,3.69715988,3596.3,3596.2,2.10551296]
[1735962942514,5.72986468,3596.7,3596.2,2.10551296]
[1735962942515,3.55804607,3596.7,3596.5,0.27814]
[1735962942817,3.55804607,3596.7,3596.6,1.00555296]
[1735962943020,3.55804607,3596.7,3596.6,1.42695296]
[1735962944817,3.27991607,3596.7,3596.6,1.70508296]
[1735962945610,6.48771607,3596.8,3596.6,1.42695296]
[1735962945815,6.48771607,3596.8,3596.7,1.79822]
[1735962946918,3.2078,3596.8,3596.7,1.79822]
[1735962947117,3.27991607,3596.9,3596.8,0.27812]
[1735962947312,3.27991607,3596.9,3596.8,1.68767296]
[1735962948119,3.27991607,3596.9,3596.8,4.89547296]
[1735962948325,3.72201607,3597.3,3597.1,0.27809]
[1735962948622,4.00009607,3597.3,3597.0,1.28365296]
[1735962948920,4.00009607,3597.3,3597.2,1.00555296]
[1735962949221,3.72201607,3597.3,3597.2,1.28364296]
[1735962949414,0.4421,3597.3,3597.2,1.28364296]
[1735962951623,0.4421,3597.3,3597.2,1.00555296]
[1735962952118,0.72018,3597.3,3597.2,1.00555296]
[1735962952319,1.14568,3597.3,3597.2,1.00555296]
[1735962953420,0.8676,3597.3,3597.2,1.00555296]
[1735962953819,0.8676,3597.3,3597.2,1.28364296]
[1735962956726,0.8676,3597.3,3597.2,1.00555296]
[1735962956930,0.8676,3597.3,3597.2,1.28364296]
[1735962957118,0.4421,3597.3,3597.2,1.28364296]
[1735962957644,0.4421,3597.3,3597.2,2.35364296]
[1735962958730,0.4421,3597.3,3597.2,2.07555296]
[1735962959328,0.72018,3597.3,3597.2,1.07]
[1735962959626,0.72018,3597.3,3597.2,2.07555296]
[1735962961919,0.4421,3597.3,3597.2,2.07555296]
[1735962962627,0.4421,3597.3,3597.2,2.35364296]
[1735962962828,0.4421,3597.3,3597.2,2.07555296]
[1735962967826,0.4421,3597.3,3597.2,2.35364296]
[1735962969229,0.4421,3597.3,3597.2,2.07555296]
[1735962969534,0.72018,3597.3,3597.2,2.07555296]
[1735962973329,0.72018,3597.3,3597.2,1.00555296]
[1735962974032,0.27809,3597.1,3597.0,2.07455296]
[1735962976628,1.13909,3597.1,3597.0,2.07455296]
[1735962978841,2.90191442,3597.3,3597.1,0.27809]
[1735962979040,3.34671442,3597.3,3597.2,1.00555296]
[1735962982836,4.44489607,3597.3,3597.2,1.00555296]
[1735962985443,1.58218064,3597.3,3597.2,1.00555296]
[1735962986251,1.16498,3597.3,3597.2,1.00555296]
[1735962986745,4.79201344,3597.4,3597.2,1.00555296]
[1735962986946,4.79201344,3597.4,3597.3,0.71268]
[1735962987249,4.79201344,3597.4,3597.3,1.55898]
[1735962988249,3.27943951,3597.4,3597.3,1.55898]
[1735962989247,2.18654582,3597.4,3597.3,5.92161665]
[1735962990546,2.46461582,3597.4,3597.3,5.23973665]
[1735962990848,2.62164582,3597.4,3597.3,5.23973665]
[1735962992050,0.4351,3597.4,3597.3,5.23973665]
[1735962992249,0.71317,3597.4,3597.3,4.80513665]
[1735962992446,1.14487,3597.4,3597.3,4.80513665]
[1735962992644,1.56417,3597.4,3597.3,4.36263665]
[1735962993546,4.84360951,3597.4,3597.3,4.36263665]
[1735962994647,6.07809757,3597.4,3597.2,2.07455296]
[1735962994950,0.27808,3597.3,3597.2,2.07455296]
[1735962996445,0.69526477,3597.3,3597.2,2.07455296]
[1735963000251,3.97645399,3597.3,3597.2,6.43718961]
[1735963002551,3.69837399,3597.3,3597.2,6.43718961]
[1735963003754,3.09640371,3597.3,3597.2,9.92307961]
[1735963004452,2.1872767,3597.4,3597.2,9.68506685]
[1735963004747,2.1872767,3597.4,3597.3,0.27808]
[1735963005951,2.1872767,3597.8,3597.7,0.27805]
[1735963006152,2.1872767,3597.8,3597.7,1.28360296]
[1735963008749,2.1872767,3598.0,3597.7,5.40662384]
[1735963008949,2.1872767,3598.0,3597.9,1.28358296]
[1735963009144,2.1872767,3598.0,3597.9,2.35258296]
[1735963010153,3.3426867,3598.2,3597.9,2.35258296]
[1735963010352,3.3426867,3598.2,3598.1,1.00555296]
[1735963011558,3.0646767,3598.2,3598.1,1.00555296]
[1735963012858,2.1872767,3598.3,3598.1,1.00555296]
[1735963013066,2.1872767,3598.3,3598.2,0.27801]
[1735963014458,3.2078,3598.4,3598.2,0.27801]
[1735963014459,2.1872767,3598.4,3598.2,0.27801]
[1735963014665,0.4309,3598.3,3598.2,0.27801]
[1735963016073,0.4309,3598.3,3598.2,1.28356296]
[1735963019568,0.4309,3598.3,3598.0,0.4152]
[1735963019774,0.8929,3598.2,3598.0,0.4152]
[1735963019962,0.8929,3598.2,3597.6,7.56992997]
[1735963020169,0.27803,3598.0,3597.7,0.27804]
[1735963020365,0.27803,3598.0,3597.7,1.34704]
[1735963020569,0.4095,3597.9,3597.8,0.27804]
[1735963021578,0.4095,3597.9,3597.8,1.28359296]
[1735963041990,0.68753,3597.9,3597.8,1.00555296]
[1735963042191,0.4095,3597.9,3597.8,1.28359296]
[1735963044592,2.5967767,3597.9,3597.8,1.28359296]
[1735963046989,2.5967767,3597.9,3597.7,4.36212997]
[1735963046990,0.27804,3597.8,3597.7,4.36212997]
[1735963048389,0.27805,3597.7,3597.6,1.00555296]
[1735963048590,1.10685,3597.7,3597.6,1.00555296]
[1735963049790,1.52401007,3597.7,3597.6,1.00555296]
[1735963050194,1.24596007,3597.7,3597.6,1.00555296]
[1735963051490,5.896968,3597.7,3597.6,1.00555296]
[1735963052193,5.618918,3597.7,3597.6,1.28361296]
[1735963052792,5.618918,3597.7,3597.6,1.00555296]
[1735963053898,1.24596007,3597.7,3597.6,1.00555296]
[1735963054499,1.52401007,3597.7,3597.6,1.00555296]
[1735963057094,1.24596007,3597.7,3597.6,1.00555296]
[1735963057703,1.52401007,3597.7,3597.6,1.00555296]
[1735963058395,1.24596007,3597.7,3597.6,1.28361296]
[1735963059003,1.24596007,3597.7,3597.6,1.00555296]
[1735963060399,1.52401007,3597.7,3597.6,1.00555296]
[1735963067004,5.896968,3597.7,3597.6,1.00555296]
[1735963068905,5.896968,3597.7,3597.3,0.4451]
[1735963069108,3.2078,3597.5,3597.4,1.00555296]
[1735963069299,3.48586,3597.5,3597.4,1.00555296]
[1735963070303,3.91386,3597.5,3597.4,1.00555296]
[1735963071514,8.703978,3597.5,3597.4,1.00555296]
[1735963072707,5.496178,3597.5,3597.4,1.00555296]
[1735963072908,8.703978,3597.5,3597.4,1.00555296]
[1735963075310,4.33102007,3597.5,3597.4,1.00555296]
[1735963077016,3.62496007,3597.5,3597.4,1.28362296]
[1735963077218,3.69065793,3597.6,3597.5,0.27806]
[1735963077415,3.00845793,3597.6,3597.5,0.68166]
[1735963077820,3.27667345,3597.7,3597.6,0.27806]
[1735963078117,3.27667345,3597.7,3597.6,2.35261296]
[1735963079120,2.46223236,3598.1,3597.6,6.45276278]
[1735963079316,2.46223236,3598.1,3597.8,0.27803]
[1735963079925,2.18421236,3598.1,3597.6,6.45276278]
[1735963080221,2.18421236,3598.1,3597.8,0.27803]
[1735963080422,2.18421236,3598.1,3597.9,0.4379]
[1735963080615,2.46223236,3598.1,3597.9,0.4379]
[1735963080820,2.18421236,3598.1,3597.9,0.4379]
[1735963081020,2.18421236,3598.1,3597.9,0.71593]
[1735963081215,2.46223236,3598.1,3597.9,0.71593]
[1735963082424,2.46223236,3598.1,3598.0,1.00555296]
[1735963083614,2.18421236,3598.1,3597.7,4.36484498]
[1735963083820,0.27803,3597.9,3597.8,4.36484498]
[1735963084019,0.4468,3598.0,3597.8,4.36484498]
[1735963084221,0.27803,3597.9,3597.8,4.36484498]
[1735963084623,0.72133,3597.9,3597.8,4.36484498]
[1735963084822,3.71997345,3597.9,3597.7,1.069]
[1735963085124,0.27804,3597.8,3597.7,1.069]
[1735963085321,0.27804,3597.8,3597.7,2.07455296]
[1735963086022,2.4624692,3597.8,3597.7,2.07455296]
[1735963087925,0.27806,3597.6,3597.5,8.64164498]
[1735963088123,0.27806,3597.6,3597.5,5.37039794]
[1735963089826,0.27806,3597.6,3597.5,1.00555296]
[1735963093229,3.48586,3597.6,3597.5,1.00555296]
[1735963094332,0.27806,3597.6,3597.5,1.00555296]
[1735963097633,0.69522214,3597.6,3597.5,1.00555296]
[1735963103242,3.97309517,3597.6,3597.5,1.00555296]
[1735963105535,3.69503517,3597.6,3597.5,1.00555296]
[1735963105737,3.69503517,3597.6,3597.5,1.28361296]
[1735963106144,0.4354,3597.8,3597.6,0.27806]
[1735963106145,3.27787303,3597.7,3597.6,0.27806]
[1735963106342,3.27787303,3597.7,3597.6,1.71321296]
[1735963107443,2.62029234,3597.8,3597.6,1.43515296]
[1735963107745,2.62029234,3597.8,3597.7,0.27805]
[1735963109447,2.62029234,3597.8,3597.6,1.71320296]
[1735963109744,0.27806,3597.6,3597.5,4.36484498]
[1735963111143,0.27806,3597.6,3597.5,5.37039794]
[1735963111746,0.27806,3597.6,3597.5,1.00555296]
[1735963111747,2.46295234,3597.6,3597.5,1.00555296]
[1735963112135,2.90105234,3597.6,3597.5,1.00555296]
[1735963113553,2.90105234,3597.6,3597.5,2.07455296]
[1735963114046,2.62299234,3597.6,3597.5,2.07455296]
[1735963114244,2.90105234,3597.6,3597.5,2.07455296]
[1735963114548,6.10885234,3597.6,3597.5,2.07455296]
[1735963115950,3.92396,3597.6,3597.5,2.07455296]
[1735963116157,3.92396,3597.6,3597.5,1.00555296]
[1735963116352,3.92396,3597.6,3597.5,2.07455296]
[1735963116950,0.71616,3597.6,3597.5,2.07455296]
[1735963118447,2.90130497,3597.6,3597.5,2.07455296]
[1735963119148,2.62324497,3597.6,3597.5,2.07455296]
[1735963119452,2.90130497,3597.6,3597.5,2.07455296]
[1735963119844,0.71616,3597.6,3597.5,2.07455296]
[1735963121046,0.4381,3597.6,3597.5,2.07455296]
[1735963121245,0.4381,3597.6,3597.5,2.35261296]
[1735963122957,0.4381,3597.6,3597.5,6.71745794]
[1735963123652,2.18549356,3597.7,3597.6,0.27806]
[1735963124454,2.18549356,3597.8,3597.5,16.64076664]
[1735963124653,2.18549356,3597.8,3597.7,1.28360296]
[1735963125960,3.05429356,3598.2,3598.1,0.27802]
[1735963126154,3.05429356,3598.2,3598.1,1.28357296]
[1735963127058,0.8688,3598.2,3598.1,1.28357296]
[1735963131667,0.8688,3598.2,3597.8,4.36541462]
[1735963131868,1.14681,3598.2,3598.1,1.00555296]
[1735963137775,0.8688,3598.2,3598.1,1.28357296]
[1735963137971,0.8688,3598.2,3598.1,1.00555296]
[1735963139573,3.05277697,3598.2,3598.1,1.00555296]
[1735963140877,1.14681,3598.2,3598.1,1.00555296]
[1735963141078,0.8688,3598.2,3598.1,1.00555296]
[1735963141880,1.14681,3598.2,3598.1,1.00555296]
[1735963142582,0.8688,3598.2,3598.1,1.00555296]
[1735963143485,3.33096915,3598.2,3598.1,1.00555296]
[1735963143685,3.05295915,3598.2,3598.1,1.00555296]
[1735963143878,3.05295915,3598.2,3598.1,1.28357296]
[1735963144281,3.05295915,3598.2,3598.1,1.00555296]
[1735963144580,3.33096915,3598.2,3598.1,1.00555296]
[1735963144984,3.05295915,3598.2,3598.1,1.00555296]
[1735963146589,3.33096915,3598.2,3598.1,1.00555296]
[1735963149393,3.05295915,3598.2,3598.1,1.00555296]
[1735963149690,3.05295915,3598.2,3598.1,1.28357296]
[1735963151089,0.8688,3598.2,3598.1,1.28357296]
[1735963155393,3.05295915,3598.2,3598.1,1.28357296]
[1735963156798,0.8688,3598.2,3598.1,1.28357296]
[1735963159795,3.05295915,3598.2,3598.1,1.28357296]
[1735963160691,3.05295915,3598.2,3598.1,2.35257296]
[1735963160999,3.33096915,3598.2,3598.1,2.35257296]
[1735963161199,3.05295915,3598.2,3598.1,2.35257296]
[1735963162399,3.05295915,3598.2,3598.1,6.71798758]
[1735963165904,0.8688,3598.2,3598.1,6.74030579]
[1735963167000,4.14667303,3598.2,3598.1,13.28842772]
[1735963169907,0.8688,3598.2,3598.1,6.74030579]
[1735963171306,4.14667303,3598.2,3598.1,6.74030579]
[1735963172213,4.14667303,3598.2,3598.1,5.73475283]
[1735963172605,4.14667303,3598.2,3598.1,6.74030579]
[1735963172812,4.14667303,3598.2,3598.1,5.73475283]
[1735963173313,4.14667303,3598.2,3598.1,6.74030579]
[1735963173904,4.14667303,3598.2,3598.1,5.73475283]
[1735963174211,4.14667303,3598.2,3598.1,12.29464034]
[1735963174212,1.28587134,3598.2,3598.1,12.29464034]
[1735963175510,1.28587134,3598.2,3598.1,0.27802]
[1735963176013,1.28587134,3598.2,3598.0,6.4487783]
[1735963176206,1.56388134,3598.2,3598.0,6.4487783]
[1735963176514,1.28587134,3598.2,3598.0,6.7267983]
[1735963177210,0.27802,3598.1,3598.0,6.4487783]
[1735963177412,0.27802,3598.1,3598.0,5.44322534]
[1735963178613,0.69509134,3598.1,3598.0,1.069]
[1735963179115,0.69509134,3598.1,3597.9,1.28358296]
[1735963179316,0.69509134,3598.1,3597.9,1.00555296]
[1735963179317,0.439,3598.0,3597.9,1.00555296]
[1735963179812,5.23127599,3598.0,3597.9,1.00555296]
[1735963180414,5.23127599,3598.0,3597.9,1.28358296]
[1735963181114,0.85607134,3598.0,3597.9,5.6578083]
[1735963183013,4.13701894,3598.0,3597.9,5.6578083]
[1735963184217,3.7199476,3598.0,3597.9,5.66930802]